bitfinex-derivatives/quotes_ETHF0:USTF0_20250612
["timestamp","ask_amount","ask_price","bid_price","bid_amount"]
[1749744247221,0.73383,2724.9,2724.8,3.2078]
[1749744247416,9.33752,2725.0,2724.4,3.2078]
[1749744247627,0.73394,2724.5,2724.4,3.2078]
[1749744247917,3.12215,2724.9,2724.4,3.2078]
[1749744247918,1.9562,2724.9,2724.4,3.2078]
[1749744248218,0.73394,2724.5,2724.4,3.2078]
[1749744248823,0.73406,2724.1,2724.0,3.2078]
[1749744249019,3.66988,2724.4,2724.0,3.2078]
[1749744249020,4.479,2724.4,2724.0,3.2078]
[1749744249220,3.2078,2724.8,2724.0,5.04298]
[1749744249518,0.6992,2725.1,2724.5,3.2078]
[1749744249718,0.6992,2725.1,2724.4,3.2078]
[1749744249918,5.04261,2724.6,2723.8,3.21330267]
[1749744250219,0.73411,2723.9,2723.8,3.21330267]
[1749744250520,1.83506,2724.3,2723.8,3.94744267]
[1749744250721,0.73411,2723.9,2723.8,0.00550267]
[1749744251517,2.00531,2723.9,2723.8,0.00550267]
[1749744252422,7.00531,2723.9,2723.8,0.00550267]
[1749744253022,32.21931,2723.9,2723.8,0.00550267]
[1749744253322,0.73436,2723.0,2722.5,3.2078]
[1749744253620,3.94214,2723.1,2722.5,3.2078]
[1749744253819,3.94214,2723.1,2722.9,0.73437]
[1749744254317,3.2078,2723.1,2722.7,0.00550267]
[1749744254519,3.2078,2723.1,2723.0,0.73435]
[1749744254820,0.00550267,2723.3,2723.2,0.7343]
[1749744255015,0.00550267,2723.3,2722.8,5.1542]
[1749744255214,0.00550267,2723.3,2723.2,0.7343]
[1749744255415,0.73431,2723.2,2722.8,5.1542]
[1749744255616,0.00550267,2723.3,2722.8,5.1542]
[1749744255811,0.73441,2722.8,2722.7,0.00550267]
[1749744256117,8.21841,2722.8,2722.7,0.00550267]
[1749744256311,14.43371,2722.8,2722.7,0.00550267]
[1749744256825,0.73461,2722.1,2721.9,3.94244]
[1749744257023,3.2078,2722.3,2721.9,3.2078]
[1749744257321,0.4408,2722.3,2722.2,3.94237]
[1749744257714,0.4408,2722.3,2722.2,0.73457]
[1749744257924,0.4408,2722.3,2722.2,3.94237]
[1749744258224,0.4408,2722.3,2722.2,0.73457]
[1749744259914,11.0233,2723.1,2722.5,1.8362]
[1749744260119,1.83595,2723.0,2722.3,0.7188]
[1749744260323,3.2078,2722.8,2722.7,0.73443]
[1749744260623,0.73441,2722.8,2722.7,0.73443]
[1749744260824,0.7344,2722.9,2722.8,0.73439]
[1749744261016,0.73441,2722.9,2722.8,0.73439]
[1749744261221,7.486,2723.0,2722.5,1.83619]
[1749744261222,0.73449,2722.6,2722.5,0.73447]
[1749744261519,8.22037,2723.0,2722.9,0.73438]
[1749744261727,4.27264,2723.1,2723.0,0.73435]
[1749744261920,3.5383,2723.1,2723.0,0.73435]
[1749744262120,0.3305,2723.1,2723.0,0.73435]
[1749744262624,0.00550267,2723.3,2723.2,0.7343]
[1749744263017,0.73977267,2723.3,2723.2,0.7343]
[1749744263214,0.00550267,2723.3,2722.8,1.1858]
[1749744263419,3.2078,2723.2,2722.8,1.1858]
[1749744263720,0.73437,2723.0,2722.9,0.73437]
[1749744264326,0.73445,2722.7,2722.6,0.73445]
[1749744264530,9.32722267,2723.3,2722.8,0.73441]
[1749744264531,3.94219,2722.9,2722.8,0.73441]
[1749744264724,5.04357,2723.2,2722.4,4.4315]
[1749744264919,0.3301,2723.2,2723.1,0.73432]
[1749744265322,3.2078,2723.8,2723.7,0.73416]
[1749744266430,0.73407,2724.1,2723.9,0.73411]
[1749744266431,0.00550267,2724.0,2723.9,0.73411]
[1749744266624,0.73958267,2724.0,2723.9,0.73411]
[1749744266822,0.00550267,2724.0,2723.5,0.00550267]
[1749744267028,3.2078,2723.8,2723.7,0.73416]
[1749744268140,0.00550267,2724.0,2723.9,0.73411]
[1749744268532,0.73958267,2724.0,2723.9,0.73411]
[1749744268737,3.21330267,2724.0,2723.6,0.7466]
[1749744268932,0.73412,2723.9,2723.8,0.73413]
[1749744269238,3.21330267,2724.0,2723.9,0.73411]
[1749744269439,0.00550267,2724.0,2723.9,0.73411]
[1749744269834,0.00550267,2724.0,2723.5,3.21330267]
[1749744270030,3.21330267,2724.0,2723.5,0.00550267]
[1749744270232,0.73412,2723.9,2723.8,0.73413]
[1749744270728,10.69830267,2724.0,2723.9,0.73411]
[1749744270932,10.69830267,2724.0,2723.7,0.73416]
[1749744271132,0.73411,2723.9,2723.8,0.73414]
[1749744271541,0.73415,2723.8,2723.5,1.30210267]
[1749744271734,12.53352267,2724.0,2723.5,1.30210267]
[1749744271937,3.21330267,2724.0,2723.9,0.73411]
[1749744272441,3.2078,2724.7,2724.6,0.73392]
[1749744272831,3.2078,2724.7,2724.1,7.01741]
[1749744273036,0.73393,2724.6,2724.5,0.73393]
[1749744273238,3.2078,2724.7,2724.2,1.9264]
[1749744273438,3.21330267,2724.7,2724.2,1.9264]
[1749744273639,3.21330267,2724.7,2723.4,3.67121]
[1749744273640,3.2078,2724.4,2723.6,1.83548]
[1749744273840,0.73406,2724.1,2724.0,0.73408]
[1749744274034,3.2078,2724.4,2724.2,0.734]
[1749744274243,3.2078,2724.4,2723.7,3.06498]
[1749744274542,5.04279,2724.4,2723.7,1.2296]
[1749744274746,0.7341,2724.0,2723.7,1.2296]
[1749744274940,3.94187,2724.1,2723.7,1.2296]
[1749744275241,3.2078,2724.5,2724.4,0.73396]
[1749744275444,3.2078,2724.5,2724.0,0.73408]
[1749744275744,3.2078,2724.5,2724.4,0.73397]
[1749744275932,3.2078,2724.5,2724.3,0.73399]
[1749744276136,3.2078,2724.5,2724.4,0.73397]
[1749744276534,3.94175,2724.5,2724.4,0.73397]
[1749744276745,0.73399,2724.4,2724.3,0.73398]
[1749744276945,0.73399,2724.4,2724.2,1.2892]
[1749744276946,0.734,2724.3,2724.2,2.02321]
[1749744277346,0.73394,2724.6,2724.5,0.73393]
[1749744277940,0.00550267,2724.7,2724.3,0.6904]
[1749744278141,0.00550267,2724.7,2724.6,0.73392]
[1749744278344,0.73939267,2724.7,2724.6,0.73392]
[1749744278547,0.00550267,2724.7,2724.6,0.73392]
[1749744278950,0.73939267,2724.7,2724.6,0.73392]
[1749744279149,0.73395,2724.6,2724.5,0.73393]
[1749744279342,0.00550267,2724.7,2724.2,1.83507]
[1749744279643,0.73403,2724.2,2724.1,0.7]
[1749744279843,0.73411,2724.0,2723.9,0.7341]
[1749744280145,0.73414,2723.8,2723.7,5.1658]
[1749744280351,0.73419,2723.6,2723.5,0.00550267]
[1749744280847,0.73443,2722.7,2722.6,1.2444]
[1749744281049,3.2078,2722.9,2722.3,3.2078]
[1749744281247,0.73438,2722.9,2722.8,0.7344]
[1749744281450,12.52758,2723.2,2722.6,0.73444]
[1749744281653,3.2078,2722.9,2722.6,0.73446]
[1749744281942,0.73443,2722.7,2722.6,0.00550267]
[1749744282946,0.73442,2722.8,2722.6,0.00550267]
[1749744283146,3.2078,2722.9,2722.6,0.00550267]
[1749744283343,0.73443,2722.7,2722.6,0.00550267]
[1749744283946,3.2078,2722.9,2722.6,0.00550267]
[1749744284145,0.73442,2722.8,2722.6,0.73995267]
[1749744284348,0.73443,2722.7,2722.6,0.00550267]
[1749744284748,3.2078,2722.9,2722.6,0.00550267]
[1749744285044,0.73443,2722.7,2722.6,0.00550267]
[1749744285446,7.486,2722.7,2722.6,0.73995267]
[1749744285754,3.2078,2722.9,2722.6,0.00550267]
[1749744285948,3.21330267,2723.2,2723.1,0.73432]
[1749744286143,0.00550267,2723.2,2723.1,0.73432]
[1749744286446,0.73434,2723.1,2722.9,1.9012]
[1749744286641,0.73435,2723.0,2722.7,3.2078]
[1749744286842,3.21330267,2723.2,2723.0,0.73434]
[1749744287050,0.73982267,2723.2,2723.1,0.73433]
[1749744287253,0.00550267,2723.2,2723.1,0.73433]
[1749744287450,5.9905,2724.1,2723.8,0.73413]
[1749744287752,3.2078,2724.1,2724.0,0.73408]
[1749744287951,0.73414,2723.8,2723.6,3.2078]
[1749744288147,0.73416,2723.7,2723.6,1.1913]
[1749744288447,3.2078,2723.8,2723.2,0.7099]
[1749744288763,0.73426,2723.4,2723.3,0.73426]
[1749744288953,0.73427,2723.3,2723.2,0.7099]
[1749744289152,1.83546,2723.7,2723.1,0.73432]
[1749744289454,3.2078,2723.5,2723.1,0.73432]
[1749744289760,0.73443,2722.7,2722.6,0.00550267]
[1749744289953,0.73443,2722.8,2722.6,0.00550267]
[1749744290157,3.2078,2722.9,2722.6,0.00550267]
[1749744290158,0.73443,2722.7,2722.6,0.00550267]
[1749744290359,0.73443,2722.8,2722.7,0.73443]
[1749744290561,3.2078,2722.9,2722.6,0.00550267]
[1749744290753,7.466,2723.1,2722.6,0.00550267]
[1749744290958,7.466,2723.1,2722.8,0.73439]
[1749744291149,4.4373,2723.2,2722.9,0.73437]
[1749744291150,0.73436,2723.0,2722.9,0.73437]
[1749744291356,0.73443,2722.7,2722.6,0.00550267]
[1749744291555,0.73441,2722.8,2722.7,0.73442]
[1749744291755,3.94219,2722.9,2722.7,0.73442]
[1749744292150,0.73443,2722.7,2722.6,0.00550267]
[1749744292355,3.2078,2722.9,2722.6,0.00550267]
[1749744292563,0.73443,2722.7,2722.6,0.00550267]
[1749744293060,0.73443,2722.7,2722.6,0.73996267]
[1749744293460,1.96132,2722.8,2722.7,0.73443]
[1749744293656,3.2078,2722.9,2722.6,0.00550267]
[1749744293854,0.73443,2722.7,2722.6,0.00550267]
[1749744294254,0.73443,2722.8,2722.6,0.00550267]
[1749744294454,0.73443,2722.8,2722.7,0.73443]
[1749744294858,0.73443,2722.7,2722.6,0.73995267]
[1749744295156,0.73443,2722.8,2722.7,0.73443]
[1749744295357,3.2078,2722.9,2722.8,0.73441]
[1749744295558,32.8818,2723.5,2722.8,3.2078]
[1749744295859,1.83582,2723.1,2722.6,0.00550267]
[1749744296054,0.73443,2722.7,2722.6,0.00550267]
[1749744296453,0.73443,2722.7,2722.6,0.73996267]
[1749744296659,0.73443,2722.7,2722.6,0.00550267]
[1749744297562,0.73443,2722.8,2722.7,0.73442]
[1749744297760,4.6925,2722.9,2722.8,0.73441]
[1749744297961,33.9043,2723.0,2722.6,0.00550267]
[1749744297962,10.6748,2723.3,2722.6,0.00550267]
[1749744298259,3.2078,2723.7,2723.6,0.73419]
[1749744298857,10.6748,2723.7,2723.6,0.73419]
[1749744299052,3.2078,2723.7,2723.6,0.73419]
[1749744299364,0.73431,2723.2,2723.1,0.73429]
[1749744299555,5.04342,2723.4,2722.8,5.0951]
[1749744299754,10.6738,2723.4,2722.9,1.83596]
[1749744299961,0.73433,2723.1,2723.0,0.73435]
[1749744300169,0.73433,2723.1,2722.8,3.9068]
[1749744300170,0.73438,2722.9,2722.8,0.73439]
[1749744300356,11.9171,2723.4,2722.7,0.7641]
[1749744300558,11.40807,2723.4,2723.3,0.73427]
[1749744300759,0.73435,2723.0,2722.9,0.73438]
[1749744301065,0.73429,2723.3,2723.2,0.73429]
[1749744301265,10.6738,2723.4,2722.8,6.9467]
[1749744301266,0.73433,2723.1,2722.8,5.1107]
[1749744301564,0.73431,2723.2,2723.1,0.73431]
[1749744301755,10.6738,2723.4,2722.8,6.9467]
[1749744301958,1.2791,2723.5,2723.1,3.2078]
[1749744301959,0.73423,2723.5,2723.1,3.2078]
[1749744302154,8.1889,2723.6,2723.1,3.2078]
[1749744302155,3.9206,2723.8,2723.2,1.83575]
[1749744302360,3.2078,2723.8,2723.7,0.73416]
[1749744302559,0.73426,2723.4,2723.3,0.73425]
[1749744302763,3.2078,2723.8,2723.1,3.2078]
[1749744302764,1.83542,2723.7,2723.1,3.2078]
[1749744302962,0.73427,2723.4,2723.3,0.73426]
[1749744303163,0.73429,2723.3,2723.2,0.73428]
[1749744303461,3.2078,2723.8,2723.1,1.8358]
[1749744303663,3.2078,2723.8,2723.7,0.73416]
[1749744304165,0.00550267,2723.9,2723.8,0.73414]
[1749744304360,0.00550267,2723.9,2723.6,1.2839]
[1749744304560,1.83535,2723.8,2723.4,3.2078]
[1749744304763,0.73429,2723.3,2723.2,0.73427]
[1749744304959,0.73424,2723.5,2723.4,0.73423]
[1749744305160,0.00550267,2723.9,2723.2,3.2078]
[1749744305364,0.00550267,2723.9,2723.8,0.73414]
[1749744305968,0.73961267,2723.9,2723.8,0.73414]
[1749744306169,0.00550267,2723.9,2723.8,0.73414]
[1749744306862,2.67e-06,2723.9,2723.8,8.94194]
[1749744307055,2.67e-06,2723.9,2723.8,16.40794]
[1749744307369,2.67e-06,2723.9,2723.8,17.66674]
[1749744308960,2.67e-06,2723.9,2723.8,5.20074]
[1749744309458,0.73411267,2723.9,2723.8,5.20074]
[1749744309659,1.83535,2723.8,2723.4,3.2078]
[1749744309961,0.7342,2723.7,2723.6,0.73417]
[1749744310356,0.73422,2723.5,2723.4,3.94203]
[1749744310562,3.2078,2723.8,2723.1,3.2078]
[1749744310760,0.73426,2723.4,2723.3,0.73424]
[1749744310961,0.73424,2723.5,2723.4,0.73422]
[1749744311163,0.7343,2723.2,2723.1,3.94212]
[1749744311362,0.73429,2723.3,2723.1,3.2078]
[1749744311569,0.73429,2723.3,2723.2,0.73428]
[1749744311961,3.2078,2723.5,2722.9,3.2078]
[1749744312364,0.73426,2723.4,2723.3,0.73425]
[1749744312569,0.7343,2723.3,2723.2,0.73429]
[1749744312769,0.73429,2723.3,2723.2,0.73428]
[1749744313270,0.7503,2723.6,2723.0,1.83585]
[1749744313467,0.7503,2723.6,2723.2,3.2078]
[1749744313658,2.67e-06,2723.9,2723.8,0.73414]
[1749744313864,2.67e-06,2723.9,2723.8,3.94194]
[1749744314363,2.67e-06,2723.9,2723.8,8.94194]
[1749744314868,2.67e-06,2723.9,2723.8,9.26500682]
[1749744315061,2.67e-06,2723.9,2723.8,9.26500336]
[1749744315263,2.67e-06,2723.9,2723.8,9.26500219]
[1749744315570,3.2078,2725.5,2725.3,0.73373]
[1749744315876,0.73382,2725.0,2724.6,7.447]
[1749744316058,0.73374,2725.3,2725.2,0.73375]
[1749744316261,7.447,2726.0,2725.2,3.2078]
[1749744316462,3.2078,2726.1,2725.6,3.2078]
[1749744316660,3.2078,2726.1,2725.9,0.73356]
[1749744316870,0.73365,2725.6,2725.5,0.7138]
[1749744317066,1.2022,2726.0,2725.5,0.7138]
[1749744317369,1.93576,2726.0,2725.5,3.9216]
[1749744317571,1.2022,2726.0,2725.5,3.9216]
[1749744317769,3.2078,2725.7,2725.3,0.00550267]
[1749744317968,0.7337,2725.5,2725.3,0.73922267]
[1749744318164,0.73371,2725.4,2725.3,0.00550267]
[1749744319074,3.2078,2725.7,2725.3,0.00550267]
[1749744319260,0.73365,2725.6,2725.3,0.00550267]
[1749744319462,3.2078,2725.7,2725.5,0.73367]
[1749744319664,0.73368,2725.5,2725.3,0.73922267]
[1749744319865,0.73369,2725.5,2725.3,0.73923267]
[1749744320072,0.73371,2725.4,2725.3,0.00550267]
[1749744320273,3.2078,2726.0,2725.3,0.00550267]
[1749744320571,0.73363,2725.7,2725.5,0.73367]
[1749744320769,1.1939,2725.9,2725.4,3.2078]
[1749744321074,0.73365,2725.7,2725.5,0.73368]
[1749744321258,3.2078,2726.0,2725.4,3.2078]
[1749744321665,0.7388,2726.1,2725.3,0.00550267]
[1749744321666,0.73371,2725.4,2725.3,0.00550267]
[1749744321864,3.94151,2725.4,2725.3,0.00550267]
[1749744322668,0.73385,2724.9,2724.7,3.2078]
[1749744322870,0.73381,2725.1,2724.7,3.2078]
[1749744323075,0.73381,2725.1,2725.0,0.73381]
[1749744323273,0.7267,2725.3,2724.7,4.5037]
[1749744323573,1.46594267,2725.3,2725.1,0.73376]
[1749744323775,0.73379,2725.1,2725.0,3.2078]
[1749744323971,0.73220267,2725.3,2724.7,3.21330267]
[1749744324173,3.09531,2725.2,2724.7,3.94718267]
[1749744324379,3.09531,2725.2,2724.7,3.21330267]
[1749744324578,1.2609,2725.2,2724.9,0.73382]
[1749744324874,0.73220267,2725.3,2725.0,3.2078]
[1749744325076,0.73379,2725.1,2725.0,3.2078]
[1749744325270,0.73387,2724.8,2724.7,0.00550267]
[1749744325470,3.94167,2724.8,2724.7,0.00550267]
[1749744325868,0.73386,2724.9,2724.7,0.73939267]
[1749744326170,2.56514,2725.2,2724.7,0.00550267]
[1749744326478,0.73387,2724.8,2724.7,0.00550267]
[1749744326978,3.94167,2724.8,2724.7,0.00550267]
[1749744327577,11.38567,2724.8,2724.7,0.00550267]
[1749744328177,9.27851,2725.1,2724.7,0.00550267]
[1749744328375,0.73387,2724.8,2724.7,0.00550267]
[1749744328876,0.73385,2724.9,2724.8,0.73385]
[1749744329079,0.7338,2725.1,2725.0,0.73381]
[1749744329277,0.73387,2724.8,2724.7,0.00550267]
[1749744332272,0.73416,2723.7,2723.6,3.2078]
[1749744332475,6.2597,2724.8,2723.9,0.7341]
[1749744332476,0.73409,2724.0,2723.9,0.7341]
[1749744332773,3.2078,2724.6,2724.3,0.73399]
[1749744332974,3.2078,2724.6,2724.1,0.73404]
[1749744333175,4.4675,2724.6,2723.6,13.77596]
[1749744333378,0.73405,2724.2,2724.1,0.73406]
[1749744333576,1.47466,2724.5,2724.4,0.73398]
[1749744333886,0.7407,2724.5,2724.0,3.10039]
[1749744334078,0.73404,2724.2,2724.1,0.73404]
[1749744334386,1.47466,2724.5,2724.4,0.73398]
[1749744334582,3.2078,2725.2,2724.7,1.83474]
[1749744334787,0.73377,2725.2,2725.1,0.73377]
[1749744334982,0.73373,2725.4,2725.2,0.73376]
[1749744335183,2.7511,2725.7,2725.2,3.94156]
[1749744335481,3.66669,2726.8,2725.2,8.2078]
[1749744335482,7.444,2726.1,2725.2,8.2078]
[1749744335776,3.2078,2726.2,2725.5,3.2078]
[1749744335982,3.2078,2725.9,2725.5,0.73368]
[1749744336183,0.73364,2725.7,2725.5,0.73368]
[1749744336379,0.73362,2725.8,2725.3,1.27070267]
[1749744336584,0.00550267,2725.9,2725.5,3.2078]
[1749744336785,0.73361,2725.8,2725.7,0.73363]
[1749744336987,0.00550267,2725.9,2725.7,0.7336]
[1749744337187,0.73909267,2725.9,2725.7,0.7336]
[1749744337383,0.7336,2725.8,2725.6,0.73363]
[1749744337579,0.00550267,2725.9,2725.5,3.2078]
[1749744337883,0.00550267,2725.9,2725.8,0.7336]
[1749744338085,0.7336,2725.8,2725.6,0.73363]
[1749744338289,0.73364,2725.7,2725.3,1.27070267]
[1749744338802,0.00550267,2725.9,2725.8,0.7336]
[1749744338995,0.00550267,2725.9,2725.4,3.2078]
[1749744339193,0.73365,2725.7,2725.4,3.2078]
[1749744339391,0.00550267,2725.9,2725.4,4.4034]
[1749744339601,0.73364,2725.7,2725.6,0.73364]
[1749744339796,0.73361,2725.8,2725.7,0.73361]
[1749744339995,0.73908267,2725.9,2725.8,0.7336]
[1749744340397,0.73361,2725.8,2725.7,0.73361]
[1749744340598,0.00550267,2725.9,2725.8,0.7336]
[1749744341200,0.00550267,2725.9,2725.8,2.7701]
[1749744341798,0.73345,2726.4,2726.3,0.73346]
[1749744341999,0.73345,2726.4,2726.0,1.83384]
[1749744342000,0.7335,2726.3,2726.2,0.73348]
[1749744342198,0.73345,2726.4,2726.3,0.73343]
[1749744342404,7.442,2726.9,2726.2,1.83373]
[1749744342603,8.17534,2726.9,2726.8,0.73333]
[1749744342800,0.73334,2726.8,2726.7,0.73334]
[1749744343199,7.442,2726.9,2726.4,3.2078]
[1749744343400,0.73335,2726.8,2726.7,0.73334]
[1749744343601,7.442,2726.9,2726.4,3.2078]
[1749744343796,8.17534,2726.9,2726.8,0.73333]
[1749744344308,0.73338,2726.6,2726.5,1.9322]
[1749744344507,7.442,2726.9,2726.0,3.2078]
[1749744344806,0.73348,2726.3,2726.2,0.73346]
[1749744345202,0.73344,2726.5,2726.4,0.73342]
[1749744345406,0.73341,2726.6,2726.5,0.7334]
[1749744345599,0.73341,2726.6,2726.3,3.2078]
[1749744345600,0.73334,2726.8,2726.7,0.73332]
[1749744345800,0.73335,2726.8,2726.7,0.73333]
[1749744346205,0.73336,2726.7,2726.6,3.2078]
[1749744346408,0.73344,2726.5,2726.4,3.9412]
[1749744347107,0.7334,2726.6,2726.5,0.73338]
[1749744347509,0.73337,2726.7,2726.6,0.73335]
[1749744347805,0.73336,2726.8,2726.4,5.04135]
[1749744348006,0.73328,2727.1,2727.0,0.73328]
[1749744348400,0.73328,2727.1,2726.8,0.00550267]
[1749744348605,8.15525,2727.2,2727.1,0.73325]
[1749744348801,0.73329,2727.1,2727.0,0.73326]
[1749744349010,7.422,2727.2,2727.1,0.73325]
[1749744349311,8.15522,2727.2,2727.1,0.73325]
[1749744349511,7.422,2727.2,2727.1,0.73325]
[1749744350013,8.15522,2727.2,2727.1,0.73325]
[1749744350310,0.7333,2727.0,2726.9,0.73328]
[1749744350710,0.7333,2726.9,2726.8,0.00550267]
[1749744351116,0.7333,2726.9,2726.8,0.73883267]
[1749744351418,0.7333,2727.0,2726.9,0.73328]
[1749744351604,0.73324,2727.2,2727.1,0.73322]
[1749744351805,7.421,2727.3,2727.2,0.73322]
[1749744352202,3.2078,2727.7,2727.3,0.73317]
[1749744352406,1.83288,2727.5,2727.1,3.2078]
[1749744352718,0.73322,2727.2,2727.1,0.73324]
[1749744353407,0.7333,2727.0,2726.9,0.73327]
[1749744353607,5.04074,2727.4,2727.1,0.73321]
[1749744353608,0.73324,2727.2,2727.1,0.73321]
[1749744353811,0.73329,2727.1,2727.0,0.73325]
[1749744354010,0.73329,2727.1,2726.8,4.50030267]
[1749744354011,0.73327,2727.2,2727.1,0.73321]
[1749744354211,0.73321,2727.3,2727.2,0.73319]
[1749744354411,3.2078,2727.4,2726.8,6.33362267]
[1749744354610,0.73326,2727.1,2727.0,0.73326]
[1749744354910,0.73326,2727.1,2726.8,6.33362267]
[1749744354911,0.73324,2727.2,2727.1,0.73323]
[1749744355712,3.13021,2727.6,2726.9,1.8332]
[1749744355915,0.73324,2727.2,2727.1,0.73322]
[1749744356115,0.7332,2727.4,2727.3,0.73318]
[1749744356713,0.73317,2727.5,2727.4,0.73315]
[1749744357021,3.94091,2727.7,2727.6,0.73311]
[1749744357213,3.2078,2727.7,2727.6,0.73311]
[1749744357818,3.94089,2727.7,2727.6,0.73311]
[1749744358216,1.43095,2727.9,2727.5,3.2078]
[1749744358413,0.73305,2727.9,2727.8,0.73306]
[1749744358816,3.2078,2728.6,2727.9,1.83259]
[1749744359015,0.7329,2728.5,2728.4,0.73288]
[1749744359219,3.2078,2728.6,2728.2,0.00550267]
[1749744359412,0.73293,2728.3,2728.2,0.00550267]
[1749744359717,3.94073,2728.3,2728.2,0.00550267]
[1749744360118,0.73289,2728.5,2728.4,0.7329]
[1749744360416,0.73293,2728.3,2728.2,0.73842267]
[1749744360622,0.73293,2728.3,2728.2,0.00550267]
[1749744361314,0.73293,2728.3,2728.2,0.73845267]
[1749744361525,0.73292,2728.4,2728.2,0.00550267]
[1749744361709,0.73292,2728.4,2728.3,0.73293]
[1749744361912,2.54768,2728.7,2728.2,0.00550267]
[1749744361913,0.7156,2728.7,2728.2,0.00550267]
[1749744362114,8.86744,2728.7,2728.6,0.73285]
[1749744362319,8.15184,2728.7,2728.2,3.10626267]
[1749744362622,0.73286,2728.6,2728.5,0.73286]
[1749744363027,0.73289,2728.5,2728.4,0.73289]
[1749744363324,0.73293,2728.3,2728.2,0.73845267]
[1749744363521,0.73292,2728.4,2728.3,0.73292]
[1749744363720,25.80683,2728.7,2728.6,0.73282]
[1749744363918,0.7088,2728.8,2728.7,0.73282]
[1749744364118,0.7088,2728.8,2728.4,1.2684]
[1749744364323,0.73287,2728.5,2728.4,2.00129]
[1749744364521,0.73293,2728.3,2728.2,0.73842267]
[1749744364719,0.73292,2728.4,2728.3,0.73291]
[1749744365225,25.80583,2728.7,2728.6,0.73285]
[1749744365420,3.2078,2728.9,2728.8,0.73279]
[1749744365831,0.73276,2728.9,2728.8,0.73279]
[1749744366321,0.73283,2728.7,2728.6,0.73282]
[1749744366522,0.73285,2728.6,2728.5,3.2078]
[1749744366715,3.2078,2728.9,2728.2,0.00550267]
[1749744366918,3.2078,2728.9,2728.3,1.83232]
[1749744367117,3.2078,2728.9,2728.5,1.83215]
[1749744367327,0.73275,2729.0,2728.9,0.73274]
[1749744367519,28.2738,2729.2,2728.6,4.4421]
[1749744367827,28.18206,2729.2,2728.7,0.73281]
[1749744368020,0.73277,2728.9,2728.8,0.73277]
[1749744368219,1.83179,2729.1,2728.4,3.2078]
[1749744368524,3.2078,2728.9,2728.3,3.2078]
[1749744368822,25.061,2728.8,2728.6,3.2078]
[1749744369024,25.79377,2728.9,2728.8,0.73276]
[1749744369223,25.061,2728.9,2728.3,6.27437]
[1749744369522,0.73283,2728.7,2728.6,0.73282]
[1749744369723,1.2843,2729.2,2728.3,4.4421]
[1749744369922,0.73278,2728.9,2728.8,0.73277]
[1749744370223,1.2843,2729.2,2728.7,1.83202]
[1749744370420,0.73271,2729.1,2729.0,0.73271]
[1749744370620,0.73274,2729.0,2728.9,0.73274]
[1749744370916,0.73272,2729.1,2729.0,0.73273]
[1749744371119,0.73275,2729.0,2728.9,0.73276]
[1749744371616,0.73269,2729.2,2729.1,0.7327]
[1749744371817,0.73272,2729.1,2729.0,0.73272]
[1749744372117,0.7327,2729.2,2729.1,0.73269]
[1749744372317,0.73268,2729.2,2729.1,0.73268]
[1749744372514,3.2078,2729.3,2728.7,1.2967]
[1749744372723,0.73272,2729.1,2729.0,0.73272]
[1749744372923,0.73269,2729.2,2729.1,0.7327]
[1749744373120,3.94047,2729.3,2729.2,0.73268]
[1749744373322,0.73263,2729.4,2729.3,0.73263]
[1749744373626,0.73268,2729.3,2729.2,0.73266]
[1749744373927,0.73267,2729.3,2729.2,0.73266]
[1749744374315,0.73273,2729.1,2729.0,0.73272]
[1749744374623,0.73274,2729.0,2728.9,0.73275]
[1749744374823,0.73282,2728.7,2728.6,4.65342]
[1749744375121,0.73279,2728.9,2728.8,0.73278]
[1749744375327,0.73279,2728.9,2728.6,3.9206]
[1749744375328,0.73281,2728.8,2728.7,0.7328]
[1749744375625,0.7328,2728.9,2728.8,0.73278]
[1749744375817,1.83207,2728.7,2728.3,1.92291]
[1749744376018,0.73292,2728.4,2728.3,0.73291]
[1749744376223,0.73293,2728.3,2728.2,0.73844267]
[1749744376420,8.12493,2728.3,2728.2,0.00550267]
[1749744376820,8.12493,2728.3,2727.4,5.1727]
[1749744376821,1.83259,2728.0,2727.4,5.1727]
[1749744377121,4.5083,2727.9,2727.1,3.9062]
[1749744377323,0.73301,2728.1,2727.6,3.2078]
[1749744377518,25.045,2728.1,2728.0,0.73299]
[1749744378029,25.045,2728.1,2728.0,0.73301]
[1749744378232,3.21330267,2728.3,2727.9,3.2078]
[1749744378422,25.046,2728.2,2728.1,0.73298]
[1749744378623,0.00550267,2728.3,2728.2,0.73296]
[1749744378824,0.00550267,2728.3,2727.9,5.88171]
[1749744379026,0.00550267,2728.3,2728.2,0.73296]
[1749744379528,0.00550267,2728.3,2728.2,3.94076]
[1749744381425,8.12474,2729.1,2728.2,15.5998]
[1749744381728,0.73266,2729.3,2728.8,3.2078]
[1749744381924,0.73262,2729.5,2729.1,3.2078]
[1749744382126,0.73264,2729.4,2729.3,0.73264]
[1749744382327,10.5998,2729.6,2729.1,3.21330267]
[1749744382629,7.392,2729.6,2729.5,0.73261]
[1749744382833,0.73257,2729.7,2729.6,0.73258]
[1749744383032,0.7326,2729.6,2729.5,0.7326]
[1749744383225,37.47009,2729.9,2729.2,1.2144]
[1749744383534,1.2179,2729.8,2729.3,0.73264]
[1749744383726,3.04925,2729.8,2729.2,1.94707]
[1749744384032,0.73266,2729.3,2729.2,1.94707]
[1749744384328,3.04925,2729.8,2729.2,1.94707]
[1749744384527,1.2179,2729.8,2729.2,1.2144]
[1749744384827,3.2078,2729.9,2729.2,1.2144]
[1749744385029,0.7325,2729.9,2729.8,0.73251]
[1749744385228,30.36375867,2730.5,2729.6,3.2078]
[1749744385524,3.2078,2730.2,2729.4,0.73262]
[1749744385729,0.73263,2729.4,2729.3,0.7457]